Workbook

Sheet sheet1
A1: 附件
A2: 金沙县2024年面向社会公开招聘城市社区工作者面试成绩登记表
A3: 序号 | B3: 报考单位名称 | C3: 报考职位名称 | D3: 报考职位代码 | E3: 姓名 | F3: 性别 | G3: 笔试成绩 | H3: 面试准考证号 | I3: 面试成绩 | J3: 总成绩 | K3: 是否列为体检对象 | L3: 备注
A4: 1 | B4: 金沙县鼓场街道办事处 | C4: 城市社区工作者 | D4: 1001 | E4: 陈雪 | F4: 女 | G4: 83.50 | H4: 12020001 | I4: 72.80 | J4: =G4*0.6+I4*0.4 -> 79.22 | K4: 是
A5: 2 | B5: 金沙县鼓场街道办事处 | C5: 城市社区工作者 | D5: 1001 | E5: 王李 | F5: 女 | G5: 76.50 | H5: 12020002 | L5: 缺考
A6: 3 | B6: 金沙县鼓场街道办事处 | C6: 城市社区工作者 | D6: 1001 | E6: 杨净礼 | F6: 女 | G6: 75.00 | H6: 12020003 | I6: 73.00 | J6: =G6*0.6+I6*0.4 -> 74.20 | K6: 是
A7: 4 | B7: 金沙县鼓场街道办事处 | C7: 城市社区工作者 | D7: 1001 | E7: 蒋扬婷 | F7: 女 | G7: 75.00 | H7: 12020004 | I7: 78.00 | J7: 76.20 | K7: 是
A8: 5 | B8: 金沙县鼓场街道办事处 | C8: 城市社区工作者 | D8: 1001 | E8: 张波 | F8: 男 | G8: 72.50 | H8: 12020005 | I8: 78.20 | J8: 74.78 | K8: 是
A9: 6 | B9: 金沙县鼓场街道办事处 | C9: 城市社区工作者 | D9: 1001 | E9: 曾凤梅 | F9: 女 | G9: 72.00 | H9: 12020006 | I9: 74.60 | J9: 73.04
A10: 7 | B10: 金沙县鼓场街道办事处 | C10: 城市社区工作者 | D10: 1001 | E10: 任莹 | F10: 女 | G10: 72.00 | H10: 12020007 | I10: 80.70 | J10: 75.48 | K10: 是
A11: 8 | B11: 金沙县鼓场街道办事处 | C11: 城市社区工作者 | D11: 1001 | E11: 黄晓 | F11: 女 | G11: 72.00 | H11: 12020008 | I11: 75.70 | J11: 73.48 | K11: 是
A12: 9 | B12: 金沙县鼓场街道办事处 | C12: 城市社区工作者 | D12: 1001 | E12: 王露 | F12: 女 | G12: 72.00 | H12: 12020009 | I12: 65.30 | J12: 69.32
A13: 10 | B13: 金沙县鼓场街道办事处 | C13: 城市社区工作者 | D13: 1001 | E13: 彭勇 | F13: 男 | G13: 71.50 | H13: 12020010 | I13: 76.20 | J13: 73.38 | K13: 是
A14: 11 | B14: 金沙县鼓场街道办事处 | C14: 城市社区工作者 | D14: 1001 | E14: 谭青 | F14: 女 | G14: 71.50 | H14: 12020011 | L14: 缺考
A15: 12 | B15: 金沙县鼓场街道办事处 | C15: 城市社区工作者 | D15: 1001 | E15: 李健 | F15: 男 | G15: 71.00 | H15: 12020012 | I15: 74.00 | J15: =G15*0.6+I15*0.4 -> 72.20
A16: 13 | B16: 金沙县鼓场街道办事处 | C16: 城市社区工作者 | D16: 1001 | E16: 曾友涵 | F16: 女 | G16: 70.50 | H16: 12020013 | I16: 77.80 | J16: 73.42 | K16: 是
A17: 14 | B17: 金沙县鼓场街道办事处 | C17: 城市社区工作者 | D17: 1001 | E17: 罗国丽 | F17: 女 | G17: 70.00 | H17: 12020014 | I17: 75.00 | J17: 72.00
A18: 15 | B18: 金沙县鼓场街道办事处 | C18: 城市社区工作者 | D18: 1001 | E18: 肖金玉 | F18: 女 | G18: 70.00 | H18: 12020015 | I18: 77.00 | J18: 72.80
A19: 16 | B19: 金沙县鼓场街道办事处 | C19: 城市社区工作者 | D19: 1001 | E19: 饶雪 | F19: 女 | G19: 68.50 | H19: 12020016 | I19: 77.30 | J19: 72.02
A20: 17 | B20: 金沙县鼓场街道办事处 | C20: 城市社区工作者 | D20: 1001 | E20: 张健 | F20: 男 | G20: 68.50 | H20: 12020017 | I20: 74.70 | J20: 70.98
A21: 18 | B21: 金沙县鼓场街道办事处 | C21: 城市社区工作者 | D21: 1001 | E21: 詹丽 | F21: 女 | G21: 68.00 | H21: 12020018 | I21: 74.00 | J21: 70.40
A22: 19 | B22: 金沙县鼓场街道办事处 | C22: 城市社区工作者 | D22: 1001 | E22: 张明义 | F22: 女 | G22: 68.00 | H22: 12020019 | L22: 缺考
A23: 20 | B23: 金沙县鼓场街道办事处 | C23: 城市社区工作者 | D23: 1001 | E23: 姜怀俊 | F23: 男 | G23: 67.50 | H23: 12020020 | L23: 缺考
A24: 21 | B24: 金沙县鼓场街道办事处 | C24: 城市社区工作者 | D24: 1001 | E24: 何世兴 | F24: 男 | G24: 67.50 | H24: 12020021 | I24: 76.90 | J24: =G24*0.6+I24*0.4 -> 71.26
A25: 22 | B25: 金沙县鼓场街道办事处 | C25: 城市社区工作者 | D25: 1001 | E25: 黄美 | F25: 女 | G25: 67.50 | H25: 12020022 | L25: 弃考
A26: 23 | B26: 金沙县鼓场街道办事处 | C26: 城市社区工作者 | D26: 1001 | E26: 刘瑞祺 | F26: 女 | G26: 67.00 | H26: 12020023 | I26: 70.70 | J26: =G26*0.6+I26*0.4 -> 68.48
A27: 24 | B27: 金沙县鼓场街道办事处 | C27: 城市社区工作者 | D27: 1001 | E27: 王坤林 | F27: 男 | G27: 67.00 | H27: 12020024 | I27: 72.50 | J27: 69.20
A28: 25 | B28: 金沙县鼓场街道办事处 | C28: 城市社区工作者 | D28: 1002 | E28: 赵英黔 | F28: 男 | G28: 80.00 | H28: 12020025 | I28: 80.00 | J28: 80.00 | K28: 是
A29: 26 | B29: 金沙县鼓场街道办事处 | C29: 城市社区工作者 | D29: 1002 | E29: 喻国欢 | F29: 女 | G29: 79.00 | H29: 12020026 | I29: 81.40 | J29: 79.96 | K29: 是
A30: 27 | B30: 金沙县鼓场街道办事处 | C30: 城市社区工作者 | D30: 1002 | E30: 李雪静 | F30: 女 | G30: 76.50 | H30: 12020027 | I30: 78.20 | J30: 77.18 | K30: 是
A31: 28 | B31: 金沙县鼓场街道办事处 | C31: 城市社区工作者 | D31: 1002 | E31: 周晓琳 | F31: 女 | G31: 74.00 | H31: 12020028 | I31: 76.20 | J31: 74.88 | K31: 是
A32: 29 | B32: 金沙县鼓场街道办事处 | C32: 城市社区工作者 | D32: 1002 | E32: 叶玉梅 | F32: 女 | G32: 73.50 | H32: 12020029 | I32: 76.00 | J32: 74.50 | K32: 是
A33: 30 | B33: 金沙县鼓场街道办事处 | C33: 城市社区工作者 | D33: 1002 | E33: 顾雪 | F33: 女 | G33: 72.50 | H33: 12020030 | I33: 78.00 | J33: 74.70 | K33: 是
A34: 31 | B34: 金沙县鼓场街道办事处 | C34: 城市社区工作者 | D34: 1002 | E34: 刘兵兵 | F34: 男 | G34: 70.50 | H34: 12020031 | I34: 74.60 | J34: 72.14
A35: 32 | B35: 金沙县鼓场街道办事处 | C35: 城市社区工作者 | D35: 1002 | E35: 袁昆梅 | F35: 女 | G35: 70.00 | H35: 12020032 | I35: 83.60 | J35: 75.44 | K35: 是
A36: 33 | B36: 金沙县鼓场街道办事处 | C36: 城市社区工作者 | D36: 1002 | E36: 张光宇 | F36: 男 | G36: 70.00 | H36: 12020033 | I36: 78.20 | J36: 73.28 | K36: 是
A37: 34 | B37: 金沙县鼓场街道办事处 | C37: 城市社区工作者 | D37: 1002 | E37: 夏雪 | F37: 女 | G37: 69.50 | H37: 12020034 | L37: 缺考
A38: 35 | B38: 金沙县鼓场街道办事处 | C38: 城市社区工作者 | D38: 1002 | E38: 喻强雯 | F38: 女 | G38: 69.00 | H38: 12020035 | I38: 75.80 | J38: =G38*0.6+I38*0.4 -> 71.72
A39: 36 | B39: 金沙县鼓场街道办事处 | C39: 城市社区工作者 | D39: 1002 | E39: 刘英 | F39: 女 | G39: 69.00 | H39: 12020036 | I39: 75.40 | J39: =G39*0.6+I39*0.4 -> 71.56
A40: 37 | B40: 金沙县鼓场街道办事处 | C40: 城市社区工作者 | D40: 1002 | E40: 赵文丽 | F40: 女 | G40: 69.00 | H40: 12020037 | I40: 63.00 | J40: =G40*0.6+I40*0.4 -> 66.60
A41: 38 | B41: 金沙县鼓场街道办事处 | C41: 城市社区工作者 | D41: 1002 | E41: 刘丹 | F41: 女 | G41: 69.00 | H41: 12020038 | I41: 74.60 | J41: =G41*0.6+I41*0.4 -> 71.24
A42: 39 | B42: 金沙县鼓场街道办事处 | C42: 城市社区工作者 | D42: 1002 | E42: 刘震 | F42: 男 | G42: 68.00 | H42: 12020039 | I42: 78.60 | J42: =G42*0.6+I42*0.4 -> 72.24
A43: 40 | B43: 金沙县鼓场街道办事处 | C43: 城市社区工作者 | D43: 1002 | E43: 杨潇 | F43: 女 | G43: 68.00 | H43: 12020040 | L43: 缺考
A44: 41 | B44: 金沙县鼓场街道办事处 | C44: 城市社区工作者 | D44: 1002 | E44: 黄琬琦 | F44: 女 | G44: 67.00 | H44: 12020041 | L44: 缺考
A45: 42 | B45: 金沙县鼓场街道办事处 | C45: 城市社区工作者 | D45: 1002 | E45: 王龙 | F45: 男 | G45: 67.00 | H45: 12020042 | I45: 72.20 | J45: =G45*0.6+I45*0.4 -> 69.08
A46: 43 | B46: 金沙县鼓场街道办事处 | C46: 城市社区工作者 | D46: 1002 | E46: 申汶 | F46: 女 | G46: 66.50 | H46: 12020043 | I46: 79.40 | J46: =G46*0.6+I46*0.4 -> 71.66
A47: 44 | B47: 金沙县鼓场街道办事处 | C47: 城市社区工作者 | D47: 1002 | E47: 曾素萍 | F47: 女 | G47: 65.50 | H47: 12020044 | I47: 73.60 | J47: =G47*0.6+I47*0.4 -> 68.74
A48: 45 | B48: 金沙县鼓场街道办事处 | C48: 城市社区工作者 | D48: 1002 | E48: 李靖 | F48: 女 | G48: 65.00 | H48: 12020045 | I48: 75.60 | J48: =G48*0.6+I48*0.4 -> 69.24
A49: 46 | B49: 金沙县鼓场街道办事处 | C49: 城市社区工作者 | D49: 1002 | E49: 陶秀琨 | F49: 男 | G49: 63.50 | H49: 12020046 | L49: 缺考
A50: 47 | B50: 金沙县鼓场街道办事处 | C50: 城市社区工作者 | D50: 1002 | E50: 冉琴 | F50: 女 | G50: 63.50 | H50: 12020047 | I50: 72.20 | J50: =G50*0.6+I50*0.4 -> 66.98
A51: 48 | B51: 金沙县鼓场街道办事处 | C51: 城市社区工作者 | D51: 1002 | E51: 郭安兵 | F51: 男 | G51: 63.50 | H51: 12020048 | L51: 缺考
A52: 49 | B52: 金沙县鼓场街道办事处 | C52: 城市社区工作者 | D52: 1002 | E52: 刘怡欣 | F52: 女 | G52: 63.50 | H52: 12020049 | I52: 72.60 | J52: =G52*0.6+I52*0.4 -> 67.14
A53: 50 | B53: 金沙县鼓场街道办事处 | C53: 城市社区工作者 | D53: 1003 | E53: 敖登来 | F53: 男 | G53: 77.00 | H53: 12020050 | I53: 76.00 | J53: =G53*0.6+I53*0.4 -> 76.60 | K53: 是
A54: 51 | B54: 金沙县鼓场街道办事处 | C54: 城市社区工作者 | D54: 1003 | E54: 尹炫 | F54: 女 | G54: 77.00 | H54: 12020051 | L54: 缺考
A55: 52 | B55: 金沙县鼓场街道办事处 | C55: 城市社区工作者 | D55: 1003 | E55: 余红 | F55: 女 | G55: 76.50 | H55: 12020052 | I55: 75.80 | J55: =G55*0.6+I55*0.4 -> 76.22 | K55: 是
A56: 53 | B56: 金沙县鼓场街道办事处 | C56: 城市社区工作者 | D56: 1003 | E56: 邱宗毅 | F56: 男 | G56: 74.00 | H56: 12020053 | I56: 80.60 | J56: =G56*0.6+I56*0.4 -> 76.64 | K56: 是
A57: 54 | B57: 金沙县鼓场街道办事处 | C57: 城市社区工作者 | D57: 1003 | E57: 冯松 | F57: 男 | G57: 74.00 | H57: 12020054 | I57: 75.80 | J57: =G57*0.6+I57*0.4 -> 74.72 | K57: 是
A58: 55 | B58: 金沙县鼓场街道办事处 | C58: 城市社区工作者 | D58: 1003 | E58: 阳熳 | F58: 女 | G58: 74.00 | H58: 12020055 | L58: 缺考
A59: 56 | B59: 金沙县鼓场街道办事处 | C59: 城市社区工作者 | D59: 1003 | E59: 李腾 | F59: 女 | G59: 73.00 | H59: 12020056 | I59: 76.30 | J59: =G59*0.6+I59*0.4 -> 74.32 | K59: 是
A60: 57 | B60: 金沙县鼓场街道办事处 | C60: 城市社区工作者 | D60: 1003 | E60: 温露露 | F60: 女 | G60: 72.00 | H60: 12020057 | I60: 74.80 | J60: =G60*0.6+I60*0.4 -> 73.12
A61: 58 | B61: 金沙县鼓场街道办事处 | C61: 城市社区工作者 | D61: 1003 | E61: 何伊迪 | F61: 女 | G61: 71.50 | H61: 12020058 | I61: 78.64 | J61: =G61*0.6+I61*0.4 -> 74.36 | K61: 是
A62: 59 | B62: 金沙县鼓场街道办事处 | C62: 城市社区工作者 | D62: 1003 | E62: 徐兴梅 | F62: 女 | G62: 71.00 | H62: 12020059 | I62: 76.00 | J62: =G62*0.6+I62*0.4 -> 73.00
A63: 60 | B63: 金沙县鼓场街道办事处 | C63: 城市社区工作者 | D63: 1003 | E63: 潘婷 | F63: 女 | G63: 71.00 | H63: 12020060 | L63: 缺考
A64: 61 | B64: 金沙县鼓场街道办事处 | C64: 城市社区工作者 | D64: 1003 | E64: 杨敏 | F64: 女 | G64: 71.00 | H64: 12020061 | L64: 缺考
A65: 62 | B65: 金沙县鼓场街道办事处 | C65: 城市社区工作者 | D65: 1003 | E65: 林艳 | F65: 女 | G65: 70.00 | H65: 12020062 | I65: 82.00 | J65: =G65*0.6+I65*0.4 -> 74.80 | K65: 是
A66: 63 | B66: 金沙县鼓场街道办事处 | C66: 城市社区工作者 | D66: 1003 | E66: 罗亚军 | F66: 男 | G66: 69.50 | H66: 12020063 | I66: 74.92 | J66: 71.67
A67: 64 | B67: 金沙县鼓场街道办事处 | C67: 城市社区工作者 | D67: 1003 | E67: 汪雨涵 | F67: 女 | G67: 68.50 | H67: 12020064 | I67: 84.96 | J67: 75.08 | K67: 是
A68: 65 | B68: 金沙县鼓场街道办事处 | C68: 城市社区工作者 | D68: 1003 | E68: 王绪鹏 | F68: 男 | G68: 68.50 | H68: 12020065 | I68: 80.60 | J68: 73.34
A69: 66 | B69: 金沙县鼓场街道办事处 | C69: 城市社区工作者 | D69: 1003 | E69: 邓芷兰 | F69: 女 | G69: 68.00 | H69: 12020066 | I69: 76.20 | J69: 71.28
A70: 67 | B70: 金沙县鼓场街道办事处 | C70: 城市社区工作者 | D70: 1003 | E70: 朱世菊 | F70: 女 | G70: 67.00 | H70: 12020067 | I70: 79.20 | J70: 71.88
A71: 68 | B71: 金沙县鼓场街道办事处 | C71: 城市社区工作者 | D71: 1003 | E71: 王绵菊 | F71: 女 | G71: 67.00 | H71: 12020068 | L71: 缺考
A72: 69 | B72: 金沙县鼓场街道办事处 | C72: 城市社区工作者 | D72: 1003 | E72: 苏连捷 | F72: 男 | G72: 66.50 | H72: 12020069 | I72: 74.80 | J72: =G72*0.6+I72*0.4 -> 69.82
A73: 70 | B73: 金沙县鼓场街道办事处 | C73: 城市社区工作者 | D73: 1003 | E73: 田时磊 | F73: 男 | G73: 66.50 | H73: 12020070 | I73: 76.60 | J73: 70.54
A74: 71 | B74: 金沙县鼓场街道办事处 | C74: 城市社区工作者 | D74: 1003 | E74: 刘沛星 | F74: 女 | G74: 66.50 | H74: 12020071 | I74: 72.70 | J74: 68.98
A75: 72 | B75: 金沙县鼓场街道办事处 | C75: 城市社区工作者 | D75: 1003 | E75: 王芳 | F75: 女 | G75: 66.00 | H75: 12020072 | I75: 78.60 | J75: 71.04
A76: 73 | B76: 金沙县鼓场街道办事处 | C76: 城市社区工作者 | D76: 1003 | E76: 韦妙妙 | F76: 女 | G76: 65.50 | H76: 12020073 | I76: 73.00 | J76: 68.50
A77: 74 | B77: 金沙县鼓场街道办事处 | C77: 城市社区工作者 | D77: 1004 | E77: 赖翔云 | F77: 女 | G77: 81.50 | H77: 12020074 | I77: 77.20 | J77: 79.78 | K77: 是
A78: 75 | B78: 金沙县鼓场街道办事处 | C78: 城市社区工作者 | D78: 1004 | E78: 李泽佳 | F78: 女 | G78: 75.00 | H78: 12020075 | I78: 76.00 | J78: 75.40 | K78: 是
A79: 76 | B79: 金沙县鼓场街道办事处 | C79: 城市社区工作者 | D79: 1004 | E79: 张庆 | F79: 女 | G79: 74.00 | H79: 12020076 | I79: 75.40 | J79: 74.56 | K79: 是
A80: 77 | B80: 金沙县鼓场街道办事处 | C80: 城市社区工作者 | D80: 1004 | E80: 陈旭 | F80: 男 | G80: 73.00 | H80: 12020077 | I80: 78.20 | J80: 75.08 | K80: 是
A81: 78 | B81: 金沙县鼓场街道办事处 | C81: 城市社区工作者 | D81: 1004 | E81: 刘艳 | F81: 女 | G81: 73.00 | H81: 12020078 | L81: 缺考
A82: 79 | B82: 金沙县鼓场街道办事处 | C82: 城市社区工作者 | D82: 1004 | E82: 杨春妹 | F82: 女 | G82: 73.00 | H82: 12020079 | I82: 75.00 | J82: =G82*0.6+I82*0.4 -> 73.80 | K82: 是
A83: 80 | B83: 金沙县鼓场街道办事处 | C83: 城市社区工作者 | D83: 1004 | E83: 陈旭 | F83: 女 | G83: 72.50 | H83: 12020080 | I83: 81.40 | J83: =G83*0.6+I83*0.4 -> 76.06 | K83: 是
A84: 81 | B84: 金沙县鼓场街道办事处 | C84: 城市社区工作者 | D84: 1004 | E84: 唐小婷 | F84: 女 | G84: 72.00 | H84: 12020081 | I84: 74.00 | J84: =G84*0.6+I84*0.4 -> 72.80
A85: 82 | B85: 金沙县鼓场街道办事处 | C85: 城市社区工作者 | D85: 1004 | E85: 赵琛耀 | F85: 女 | G85: 71.50 | H85: 12020082 | I85: 76.60 | J85: =G85*0.6+I85*0.4 -> 73.54 | K85: 是
A86: 83 | B86: 金沙县鼓场街道办事处 | C86: 城市社区工作者 | D86: 1004 | E86: 胡邦涛 | F86: 男 | G86: 71.50 | H86: 12020083 | I86: 76.20 | J86: =G86*0.6+I86*0.4 -> 73.38
A87: 84 | B87: 金沙县鼓场街道办事处 | C87: 城市社区工作者 | D87: 1004 | E87: 黄成建 | F87: 男 | G87: 70.50 | H87: 12020084 | L87: 缺考
A88: 85 | B88: 金沙县鼓场街道办事处 | C88: 城市社区工作者 | D88: 1004 | E88: 何静 | F88: 女 | G88: 70.00 | H88: 12020085 | L88: 缺考
A89: 86 | B89: 金沙县鼓场街道办事处 | C89: 城市社区工作者 | D89: 1004 | E89: 罗胜艳 | F89: 女 | G89: 69.50 | H89: 12020086 | L89: 缺考
A90: 87 | B90: 金沙县鼓场街道办事处 | C90: 城市社区工作者 | D90: 1004 | E90: 曾循 | F90: 男 | G90: 69.50 | H90: 12020087 | I90: 78.20 | J90: =G90*0.6+I90*0.4 -> 72.98
A91: 88 | B91: 金沙县鼓场街道办事处 | C91: 城市社区工作者 | D91: 1004 | E91: 廖坤焱 | F91: 男 | G91: 69.00 | H91: 12020088 | I91: 83.00 | J91: 74.60 | K91: 是
A92: 89 | B92: 金沙县鼓场街道办事处 | C92: 城市社区工作者 | D92: 1004 | E92: 刘祚祚 | F92: 男 | G92: 68.00 | H92: 12020089 | I92: 79.00 | J92: 72.40
A93: 90 | B93: 金沙县鼓场街道办事处 | C93: 城市社区工作者 | D93: 1004 | E93: 李正萍 | F93: 女 | G93: 67.50 | H93: 12020090 | I93: 74.80 | J93: 70.42
A94: 91 | B94: 金沙县鼓场街道办事处 | C94: 城市社区工作者 | D94: 1004 | E94: 敖翔 | F94: 女 | G94: 66.50 | H94: 12020091 | I94: 78.60 | J94: 71.34
A95: 92 | B95: 金沙县鼓场街道办事处 | C95: 城市社区工作者 | D95: 1004 | E95: 王鑫鑫 | F95: 男 | G95: 65.50 | H95: 12020092 | I95: 76.60 | J95: 69.94
A96: 93 | B96: 金沙县鼓场街道办事处 | C96: 城市社区工作者 | D96: 1004 | E96: 尚华凤 | F96: 女 | G96: 65.00 | H96: 12020093 | L96: 缺考
A97: 94 | B97: 金沙县鼓场街道办事处 | C97: 城市社区工作者 | D97: 1004 | E97: 阳洵 | F97: 女 | G97: 64.50 | H97: 12020094 | I97: 78.40 | J97: =G97*0.6+I97*0.4 -> 70.06
A98: 95 | B98: 金沙县鼓场街道办事处 | C98: 城市社区工作者 | D98: 1004 | E98: 王施佳 | F98: 女 | G98: 64.50 | H98: 12020095 | I98: 75.80 | J98: =G98*0.6+I98*0.4 -> 69.02
A99: 96 | B99: 金沙县鼓场街道办事处 | C99: 城市社区工作者 | D99: 1004 | E99: 罗景瑶 | F99: 女 | G99: 64.50 | H99: 12020096 | I99: 76.40 | J99: =G99*0.6+I99*0.4 -> 69.26
A100: 97 | B100: 金沙县鼓场街道办事处 | C100: 城市社区工作者 | D100: 1004 | E100: 任丽 | F100: 女 | G100: 63.00 | H100: 12020097 | L100: 缺考
A101: 98 | B101: 金沙县鼓场街道办事处 | C101: 城市社区工作者 | D101: 1004 | E101: 李元兵 | F101: 男 | G101: 63.00 | H101: 12020098 | I101: 74.60 | J101: =G101*0.6+I101*0.4 -> 67.64
A102: 99 | B102: 金沙县鼓场街道办事处 | C102: 城市社区工作者 | D102: 1004 | E102: 王开玲 | F102: 女 | G102: 63.00 | H102: 12020099 | I102: 77.00 | J102: 68.60
A103: 100 | B103: 金沙县鼓场街道办事处 | C103: 城市社区工作者 | D103: 1004 | E103: 金永华 | F103: 男 | G103: 63.00 | H103: 12020100 | I103: 75.00 | J103: 67.80
A104: 101 | B104: 金沙县民兴街道办事处 | C104: 城市社区工作者 | D104: 1005 | E104: 汪瑶瑶 | F104: 女 | G104: 80.00 | H104: 12020101 | I104: 76.80 | J104: 78.72 | K104: 是
A105: 102 | B105: 金沙县民兴街道办事处 | C105: 城市社区工作者 | D105: 1005 | E105: 洪蕾 | F105: 女 | G105: 79.00 | H105: 12020102 | I105: 72.80 | J105: 76.52 | K105: 是
A106: 103 | B106: 金沙县民兴街道办事处 | C106: 城市社区工作者 | D106: 1005 | E106: 廖艳 | F106: 女 | G106: 79.00 | H106: 12020103 | I106: 77.80 | J106: 78.52 | K106: 是
A107: 104 | B107: 金沙县民兴街道办事处 | C107: 城市社区工作者 | D107: 1005 | E107: 杨秀艳 | F107: 女 | G107: 78.00 | H107: 12020104 | I107: 81.60 | J107: 79.44 | K107: 是
A108: 105 | B108: 金沙县民兴街道办事处 | C108: 城市社区工作者 | D108: 1005 | E108: 徐星星 | F108: 女 | G108: 77.00 | H108: 12020105 | I108: 75.20 | J108: 76.28 | K108: 是
A109: 106 | B109: 金沙县民兴街道办事处 | C109: 城市社区工作者 | D109: 1005 | E109: 周龙兴 | F109: 男 | G109: 76.00 | H109: 12020106 | I109: 80.00 | J109: 77.60 | K109: 是
A110: 107 | B110: 金沙县民兴街道办事处 | C110: 城市社区工作者 | D110: 1005 | E110: 陈媛美 | F110: 女 | G110: 76.00 | H110: 12020107 | I110: 75.80 | J110: 75.92 | K110: 是
A111: 108 | B111: 金沙县民兴街道办事处 | C111: 城市社区工作者 | D111: 1005 | E111: 秦芳 | F111: 女 | G111: 74.50 | H111: 12020108 | I111: 75.40 | J111: 74.86
A112: 109 | B112: 金沙县民兴街道办事处 | C112: 城市社区工作者 | D112: 1005 | E112: 朱曼迪 | F112: 女 | G112: 73.00 | H112: 12020109 | I112: 77.60 | J112: 74.84
A113: 110 | B113: 金沙县民兴街道办事处 | C113: 城市社区工作者 | D113: 1005 | E113: 文小艳 | F113: 女 | G113: 73.00 | H113: 12020110 | I113: 75.00 | J113: 73.80
A114: 111 | B114: 金沙县民兴街道办事处 | C114: 城市社区工作者 | D114: 1005 | E114: 刘欢 | F114: 女 | G114: 73.00 | H114: 12020111 | I114: 76.20 | J114: 74.28
A115: 112 | B115: 金沙县民兴街道办事处 | C115: 城市社区工作者 | D115: 1005 | E115: 陈欢 | F115: 男 | G115: 72.00 | H115: 12020112 | I115: 80.60 | J115: 75.44
A116: 113 | B116: 金沙县民兴街道办事处 | C116: 城市社区工作者 | D116: 1005 | E116: 秦俊 | F116: 女 | G116: 72.00 | H116: 12020113 | I116: 76.00 | J116: 73.60
A117: 114 | B117: 金沙县民兴街道办事处 | C117: 城市社区工作者 | D117: 1005 | E117: 李云霞 | F117: 女 | G117: 72.00 | H117: 12020114 | I117: 84.80 | J117: 77.12 | K117: 是
A118: 115 | B118: 金沙县民兴街道办事处 | C118: 城市社区工作者 | D118: 1005 | E118: 付玉 | F118: 女 | G118: 71.50 | H118: 12020115 | I118: 79.80 | J118: 74.82
A119: 116 | B119: 金沙县民兴街道办事处 | C119: 城市社区工作者 | D119: 1005 | E119: 虞巧 | F119: 女 | G119: 71.00 | H119: 12020116 | I119: 79.20 | J119: 74.28
A120: 117 | B120: 金沙县民兴街道办事处 | C120: 城市社区工作者 | D120: 1005 | E120: 郭应红 | F120: 男 | G120: 70.50 | H120: 12020117 | L120: 缺考
A121: 118 | B121: 金沙县民兴街道办事处 | C121: 城市社区工作者 | D121: 1005 | E121: 陈婷婷 | F121: 女 | G121: 70.00 | H121: 12020118 | I121: 76.00 | J121: =G121*0.6+I121*0.4 -> 72.40
A122: 119 | B122: 金沙县民兴街道办事处 | C122: 城市社区工作者 | D122: 1005 | E122: 朱元伟 | F122: 男 | G122: 69.00 | H122: 12020119 | I122: 75.40 | J122: =G122*0.6+I122*0.4 -> 71.56
A123: 120 | B123: 金沙县民兴街道办事处 | C123: 城市社区工作者 | D123: 1005 | E123: 叶曼 | F123: 女 | G123: 68.00 | H123: 12020120 | I123: 54.40 | J123: =G123*0.6+I123*0.4 -> 62.56
A124: 121 | B124: 金沙县民兴街道办事处 | C124: 城市社区工作者 | D124: 1005 | E124: 宋雄 | F124: 男 | G124: 67.00 | H124: 12020121 | I124: 73.80 | J124: =G124*0.6+I124*0.4 -> 69.72
A125: 122 | B125: 金沙县民兴街道办事处 | C125: 城市社区工作者 | D125: 1005 | E125: 张国娅 | F125: 女 | G125: 66.50 | H125: 12020122 | I125: 72.60 | J125: =G125*0.6+I125*0.4 -> 68.94
A126: 123 | B126: 金沙县民兴街道办事处 | C126: 城市社区工作者 | D126: 1005 | E126: 刘叶 | F126: 女 | G126: 66.50 | H126: 12020123 | L126: 缺考
A127: 124 | B127: 金沙县民兴街道办事处 | C127: 城市社区工作者 | D127: 1005 | E127: 徐云兰 | F127: 女 | G127: 66.00 | H127: 12020124 | I127: 77.80 | J127: =G127*0.6+I127*0.4 -> 70.72
A128: 125 | B128: 金沙县岩孔街道办事处 | C128: 城市社区工作者 | D128: 1010 | E128: 滕沙 | F128: 女 | G128: 79.00 | H128: 12020125 | I128: 76.60 | J128: 78.04 | K128: 是
A129: 126 | B129: 金沙县岩孔街道办事处 | C129: 城市社区工作者 | D129: 1010 | E129: 黄梦婷 | F129: 女 | G129: 75.50 | H129: 12020126 | I129: 77.60 | J129: 76.34 | K129: 是
A130: 127 | B130: 金沙县岩孔街道办事处 | C130: 城市社区工作者 | D130: 1010 | E130: 王毅 | F130: 男 | G130: 75.50 | H130: 12020127 | I130: 81.00 | J130: 77.70 | K130: 是
A131: 128 | B131: 金沙县岩孔街道办事处 | C131: 城市社区工作者 | D131: 1010 | E131: 何传芬 | F131: 女 | G131: 73.50 | H131: 12020128 | I131: 80.20 | J131: 76.18 | K131: 是
A132: 129 | B132: 金沙县岩孔街道办事处 | C132: 城市社区工作者 | D132: 1010 | E132: 陈足 | F132: 女 | G132: 72.00 | H132: 12020129 | I132: 71.20 | J132: 71.68
A133: 130 | B133: 金沙县岩孔街道办事处 | C133: 城市社区工作者 | D133: 1010 | E133: 杨天麟 | F133: 男 | G133: 72.00 | H133: 12020130 | I133: 78.60 | J133: 74.64
A134: 131 | B134: 金沙县岩孔街道办事处 | C134: 城市社区工作者 | D134: 1010 | E134: 陈世刚 | F134: 男 | G134: 72.00 | H134: 12020131 | I134: 75.60 | J134: 73.44
A135: 132 | B135: 金沙县岩孔街道办事处 | C135: 城市社区工作者 | D135: 1010 | E135: 张馨文 | F135: 女 | G135: 70.50 | H135: 12020132 | I135: 77.60 | J135: 73.34
A136: 133 | B136: 金沙县岩孔街道办事处 | C136: 城市社区工作者 | D136: 1010 | E136: 赵朝婷 | F136: 女 | G136: 69.50 | H136: 12020133 | L136: 缺考
A137: 134 | B137: 金沙县岩孔街道办事处 | C137: 城市社区工作者 | D137: 1010 | E137: 朱申兰 | F137: 女 | G137: 69.00 | H137: 12020134 | I137: 73.80 | J137: =G137*0.6+I137*0.4 -> 70.92
A138: 135 | B138: 金沙县岩孔街道办事处 | C138: 城市社区工作者 | D138: 1010 | E138: 伍尉嘉 | F138: 男 | G138: 66.00 | H138: 12020135 | I138: 77.80 | J138: =G138*0.6+I138*0.4 -> 70.72
A139: 136 | B139: 金沙县岩孔街道办事处 | C139: 城市社区工作者 | D139: 1010 | E139: 王荣莉 | F139: 女 | G139: 66.00 | H139: 12020136 | L139: 缺考
A140: 137 | B140: 金沙县五龙街道办事处 | C140: 城市社区工作者 | D140: 1006 | E140: 蒋苑 | F140: 女 | G140: 82.00 | H140: 12020137 | I140: 78.80 | J140: =G140*0.6+I140*0.4 -> 80.72 | K140: 是
A141: 138 | B141: 金沙县五龙街道办事处 | C141: 城市社区工作者 | D141: 1006 | E141: 阳情 | F141: 女 | G141: 78.00 | H141: 12020138 | I141: 76.40 | J141: 77.36 | K141: 是
A142: 139 | B142: 金沙县五龙街道办事处 | C142: 城市社区工作者 | D142: 1006 | E142: 吴婷 | F142: 女 | G142: 77.00 | H142: 12020139 | I142: 76.20 | J142: 76.68 | K142: 是
A143: 140 | B143: 金沙县五龙街道办事处 | C143: 城市社区工作者 | D143: 1006 | E143: 姜银 | F143: 女 | G143: 74.00 | H143: 12020140 | I143: 79.10 | J143: 76.04 | K143: 是
A144: 141 | B144: 金沙县五龙街道办事处 | C144: 城市社区工作者 | D144: 1006 | E144: 王小念 | F144: 女 | G144: 73.00 | H144: 12020141 | I144: 78.80 | J144: 75.32 | K144: 是
A145: 142 | B145: 金沙县五龙街道办事处 | C145: 城市社区工作者 | D145: 1006 | E145: 陈云 | F145: 女 | G145: 69.50 | H145: 12020142 | I145: 71.40 | J145: 70.26
A146: 143 | B146: 金沙县五龙街道办事处 | C146: 城市社区工作者 | D146: 1006 | E146: 余倩 | F146: 女 | G146: 69.00 | H146: 12020143 | I146: 76.60 | J146: 72.04
A147: 144 | B147: 金沙县五龙街道办事处 | C147: 城市社区工作者 | D147: 1006 | E147: 朱庄梅 | F147: 女 | G147: 68.50 | H147: 12020144 | I147: 77.40 | J147: 72.06 | K147: 是
A148: 145 | B148: 金沙县五龙街道办事处 | C148: 城市社区工作者 | D148: 1006 | E148: 涂忠琴 | F148: 男 | G148: 66.50 | H148: 12020145 | I148: 76.40 | J148: 70.46
A149: 146 | B149: 金沙县五龙街道办事处 | C149: 城市社区工作者 | D149: 1006 | E149: 张菊 | F149: 女 | G149: 65.50 | H149: 12020146 | I149: 78.20 | J149: 70.58
A150: 147 | B150: 金沙县五龙街道办事处 | C150: 城市社区工作者 | D150: 1006 | E150: 王婷 | F150: 女 | G150: 65.00 | H150: 12020147 | I150: 74.40 | J150: 68.76
A151: 148 | B151: 金沙县五龙街道办事处 | C151: 城市社区工作者 | D151: 1006 | E151: 黄丽丽 | F151: 女 | G151: 64.50 | H151: 12020148 | I151: 74.40 | J151: 68.46
A152: 149 | B152: 金沙县五龙街道办事处 | C152: 城市社区工作者 | D152: 1006 | E152: 王启星 | F152: 男 | G152: 64.00 | H152: 12020149 | I152: 73.60 | J152: 67.84
A153: 150 | B153: 金沙县五龙街道办事处 | C153: 城市社区工作者 | D153: 1006 | E153: 蒙国政 | F153: 男 | G153: 63.50 | H153: 12020150 | L153: 缺考
A154: 151 | B154: 金沙县五龙街道办事处 | C154: 城市社区工作者 | D154: 1006 | E154: 付敏 | F154: 女 | G154: 63.00 | H154: 12020151 | I154: 38.80 | J154: =G154*0.6+I154*0.4 -> 53.32
A155: 152 | B155: 金沙县五龙街道办事处 | C155: 城市社区工作者 | D155: 1006 | E155: 张雨 | F155: 女 | G155: 63.00 | H155: 12020152 | L155: 缺考
A156: 153 | B156: 金沙县五龙街道办事处 | C156: 城市社区工作者 | D156: 1006 | E156: 陈琴 | F156: 女 | G156: 63.00 | H156: 12020153 | I156: 79.20 | J156: =G156*0.6+I156*0.4 -> 69.48
A157: 154 | B157: 金沙县五龙街道办事处 | C157: 城市社区工作者 | D157: 1006 | E157: 阮文静 | F157: 女 | G157: 62.50 | H157: 12020154 | I157: 71.60 | J157: 66.14
A158: 155 | B158: 金沙县西洛街道办事处 | C158: 城市社区工作者 | D158: 1007 | E158: 王云 | F158: 女 | G158: 83.00 | H158: 12020155 | I158: 82.40 | J158: 82.76 | K158: 是
A159: 156 | B159: 金沙县西洛街道办事处 | C159: 城市社区工作者 | D159: 1007 | E159: 王文娟 | F159: 女 | G159: 79.50 | H159: 12020156 | I159: 13.60 | J159: 53.14
A160: 157 | B160: 金沙县西洛街道办事处 | C160: 城市社区工作者 | D160: 1007 | E160: 张珣 | F160: 女 | G160: 79.50 | H160: 12020157 | I160: 82.00 | J160: 80.50 | K160: 是
A161: 158 | B161: 金沙县西洛街道办事处 | C161: 城市社区工作者 | D161: 1007 | E161: 汪顺林 | F161: 男 | G161: 77.50 | H161: 12020158 | I161: 84.20 | J161: 80.18 | K161: 是
A162: 159 | B162: 金沙县西洛街道办事处 | C162: 城市社区工作者 | D162: 1007 | E162: 刘明举 | F162: 男 | G162: 75.50 | H162: 12020159 | I162: 71.20 | J162: 73.78
A163: 160 | B163: 金沙县西洛街道办事处 | C163: 城市社区工作者 | D163: 1007 | E163: 钟迪 | F163: 男 | G163: 74.50 | H163: 12020160 | I163: 83.60 | J163: 78.14 | K163: 是
A164: 161 | B164: 金沙县西洛街道办事处 | C164: 城市社区工作者 | D164: 1007 | E164: 马静 | F164: 女 | G164: 74.50 | H164: 12020161 | L164: 缺考
A165: 162 | B165: 金沙县西洛街道办事处 | C165: 城市社区工作者 | D165: 1007 | E165: 汪绪绪 | F165: 女 | G165: 72.00 | H165: 12020162 | I165: 73.50 | J165: =G165*0.6+I165*0.4 -> 72.60
A166: 163 | B166: 金沙县西洛街道办事处 | C166: 城市社区工作者 | D166: 1007 | E166: 张迎节 | F166: 女 | G166: 71.50 | H166: 12020163 | I166: 82.40 | J166: =G166*0.6+I166*0.4 -> 75.86 | K166: 是
A167: 164 | B167: 金沙县西洛街道办事处 | C167: 城市社区工作者 | D167: 1007 | E167: 温玮杨 | F167: 男 | G167: 71.50 | H167: 12020164 | I167: 81.80 | J167: =G167*0.6+I167*0.4 -> 75.62
A168: 165 | B168: 金沙县西洛街道办事处 | C168: 城市社区工作者 | D168: 1007 | E168: 陈之琴 | F168: 女 | G168: 71.00 | H168: 12020165 | I168: 83.40 | J168: =G168*0.6+I168*0.4 -> 75.96 | K168: 是
A169: 166 | B169: 金沙县西洛街道办事处 | C169: 城市社区工作者 | D169: 1007 | E169: 蔡瑜 | F169: 女 | G169: 69.50 | H169: 12020166 | L169: 缺考
A170: 167 | B170: 金沙县西洛街道办事处 | C170: 城市社区工作者 | D170: 1007 | E170: 马方云 | F170: 男 | G170: 68.50 | H170: 12020167 | I170: 50.20 | J170: =G170*0.6+I170*0.4 -> 61.18
A171: 168 | B171: 金沙县西洛街道办事处 | C171: 城市社区工作者 | D171: 1007 | E171: 罗彬 | F171: 男 | G171: 67.50 | H171: 12020168 | L171: 缺考
A172: 169 | B172: 金沙县西洛街道办事处 | C172: 城市社区工作者 | D172: 1007 | E172: 王雪 | F172: 女 | G172: 67.00 | H172: 12020169 | I172: 79.40 | J172: =G172*0.6+I172*0.4 -> 71.96
A173: 170 | B173: 金沙县西洛街道办事处 | C173: 城市社区工作者 | D173: 1007 | E173: 曾维星 | F173: 男 | G173: 67.00 | H173: 12020170 | I173: 78.00 | J173: =G173*0.6+I173*0.4 -> 71.40
A174: 171 | B174: 金沙县西洛街道办事处 | C174: 城市社区工作者 | D174: 1007 | E174: 谢德莎 | F174: 女 | G174: 66.50 | H174: 12020171 | L174: 缺考
A175: 172 | B175: 金沙县西洛街道办事处 | C175: 城市社区工作者 | D175: 1007 | E175: 尚丹 | F175: 女 | G175: 66.00 | H175: 12020172 | I175: 30.00 | J175: =G175*0.6+I175*0.4 -> 51.60
A176: 173 | B176: 金沙县西洛街道办事处 | C176: 城市社区工作者 | D176: 1007 | E176: 彭茂 | F176: 女 | G176: 66.00 | H176: 12020173 | L176: 缺考
A177: 174 | B177: 金沙县西洛街道办事处 | C177: 城市社区工作者 | D177: 1008 | E177: 简招婷 | F177: 女 | G177: 84.50 | H177: 12020174 | I177: 80.00 | J177: =G177*0.6+I177*0.4 -> 82.70 | K177: 是
A178: 175 | B178: 金沙县西洛街道办事处 | C178: 城市社区工作者 | D178: 1008 | E178: 何世秀 | F178: 女 | G178: 81.00 | H178: 12020175 | I178: 81.60 | J178: 81.24 | K178: 是
A179: 176 | B179: 金沙县西洛街道办事处 | C179: 城市社区工作者 | D179: 1008 | E179: 胡家丽 | F179: 女 | G179: 79.50 | H179: 12020176 | I179: 77.00 | J179: 78.50 | K179: 是
A180: 177 | B180: 金沙县西洛街道办事处 | C180: 城市社区工作者 | D180: 1008 | E180: 李梅 | F180: 女 | G180: 76.50 | H180: 12020177 | I180: 78.20 | J180: 77.18 | K180: 是
A181: 178 | B181: 金沙县西洛街道办事处 | C181: 城市社区工作者 | D181: 1008 | E181: 马小会 | F181: 女 | G181: 76.50 | H181: 12020178 | I181: 83.40 | J181: 79.26 | K181: 是
A182: 179 | B182: 金沙县西洛街道办事处 | C182: 城市社区工作者 | D182: 1008 | E182: 姜燕玉 | F182: 女 | G182: 75.00 | H182: 12020179 | I182: 79.80 | J182: 76.92 | K182: 是
A183: 180 | B183: 金沙县西洛街道办事处 | C183: 城市社区工作者 | D183: 1008 | E183: 张思琪 | F183: 女 | G183: 73.50 | H183: 12020180 | I183: 82.00 | J183: 76.90
A184: 181 | B184: 金沙县西洛街道办事处 | C184: 城市社区工作者 | D184: 1008 | E184: 赵朝攀 | F184: 男 | G184: 73.00 | H184: 12020181 | I184: 73.80 | J184: 73.32
A185: 182 | B185: 金沙县西洛街道办事处 | C185: 城市社区工作者 | D185: 1008 | E185: 王勇琰 | F185: 女 | G185: 73.00 | H185: 12020182 | I185: 82.00 | J185: 76.60
A186: 183 | B186: 金沙县西洛街道办事处 | C186: 城市社区工作者 | D186: 1008 | E186: 汪显蕾 | F186: 女 | G186: 72.50 | H186: 12020183 | I186: 79.20 | J186: 75.18
A187: 184 | B187: 金沙县西洛街道办事处 | C187: 城市社区工作者 | D187: 1008 | E187: 熊灿维 | F187: 女 | G187: 72.00 | H187: 12020184 | I187: 77.60 | J187: 74.24
A188: 185 | B188: 金沙县西洛街道办事处 | C188: 城市社区工作者 | D188: 1008 | E188: 刘玉霞 | F188: 女 | G188: 70.50 | H188: 12020185 | L188: 缺考
A189: 186 | B189: 金沙县西洛街道办事处 | C189: 城市社区工作者 | D189: 1008 | E189: 李孟慈 | F189: 女 | G189: 70.50 | H189: 12020186 | I189: 77.40 | J189: =G189*0.6+I189*0.4 -> 73.26
A190: 187 | B190: 金沙县西洛街道办事处 | C190: 城市社区工作者 | D190: 1008 | E190: 康盼 | F190: 女 | G190: 69.50 | H190: 12020187 | L190: 缺考
A191: 188 | B191: 金沙县西洛街道办事处 | C191: 城市社区工作者 | D191: 1008 | E191: 陈超艺 | F191: 女 | G191: 69.50 | H191: 12020188 | I191: 79.80 | J191: =G191*0.6+I191*0.4 -> 73.62
A192: 189 | B192: 金沙县西洛街道办事处 | C192: 城市社区工作者 | D192: 1008 | E192: 龙斌 | F192: 男 | G192: 67.50 | H192: 12020189 | L192: 缺考
A193: 190 | B193: 金沙县西洛街道办事处 | C193: 城市社区工作者 | D193: 1008 | E193: 洪官美 | F193: 女 | G193: 67.00 | H193: 12020190 | I193: 77.60 | J193: =G193*0.6+I193*0.4 -> 71.24
A194: 191 | B194: 金沙县西洛街道办事处 | C194: 城市社区工作者 | D194: 1008 | E194: 蒋婷 | F194: 女 | G194: 66.50 | H194: 12020191 | I194: 72.20 | J194: =G194*0.6+I194*0.4 -> 68.78
A195: 192 | B195: 金沙县西洛街道办事处 | C195: 城市社区工作者 | D195: 1008 | E195: 罗欢 | F195: 女 | G195: 66.50 | H195: 12020192 | I195: 77.40 | J195: =G195*0.6+I195*0.4 -> 70.86
A196: 193 | B196: 金沙县西洛街道办事处 | C196: 城市社区工作者 | D196: 1009 | E196: 肖路 | F196: 女 | G196: 79.00 | H196: 12020193 | I196: 78.40 | J196: =G196*0.6+I196*0.4 -> 78.76 | K196: 是
A197: 194 | B197: 金沙县西洛街道办事处 | C197: 城市社区工作者 | D197: 1009 | E197: 王贵兰 | F197: 女 | G197: 79.00 | H197: 12020194 | I197: 80.40 | J197: =G197*0.6+I197*0.4 -> 79.56 | K197: 是
A198: 195 | B198: 金沙县西洛街道办事处 | C198: 城市社区工作者 | D198: 1009 | E198: 赵飞 | F198: 女 | G198: 77.00 | H198: 12020195 | L198: 缺考
A199: 196 | B199: 金沙县西洛街道办事处 | C199: 城市社区工作者 | D199: 1009 | E199: 孙美 | F199: 女 | G199: 76.50 | H199: 12020196 | I199: 71.00 | J199: =G199*0.6+I199*0.4 -> 74.30 | K199: 是
A200: 197 | B200: 金沙县西洛街道办事处 | C200: 城市社区工作者 | D200: 1009 | E200: 李宪碧 | F200: 女 | G200: 75.50 | H200: 12020197 | I200: 77.20 | J200: =G200*0.6+I200*0.4 -> 76.18 | K200: 是
... 16 more rows
